Cogmind - Beta 15 @@@ ROGUE MODE // 2025.09.24 @ 17:50:57 Player: Kotyk77 Result: Destroyed by as-67133 with Assembled Blade Performance ------------- Evolutions (0) 0 Regions Visited (4) 800 Robots Destroyed (18) 90 Value Destroyed (387) 387 Prototype IDs (25) 500 Alien Tech Used (0) 0 Bonus (300) 300 TOTAL SCORE: 2077 Bonus ------- Aligned with FarCom 300 Cogmind --------- Core Integrity 0/250 Matter 295/300 Energy 250/250 System Corruption 0% Temperature Cool (0) Movement Rolling (125) Ox3 Location -9/Mines Parts ------- > --- POWER (1) -------- Ion Engine > --- PROPULSION (2) --- Wheel > --- UTILITY (2) ------ Large Storage Unit Visual Processing Unit > --- WEAPON (2) ------- Particle Gun Field Lobotomy Kit > --- INVENTORY (15) --- Light Ion Engine Light Ion Engine Wheel Wheel Wheel Compact Wheel Medium Storage Unit Targeting Computer ECM Suite Bomb Drone Bay Light Assault Rifle Grenade Launcher Grenade Launcher Mining Laser Peak State ------------ > --- POWER ------------ Ion Engine > --- PROPULSION ------- Wheel Compact Wheel > --- UTILITY ---------- Large Storage Unit Visual Processing Unit > --- WEAPON ----------- Particle Gun Field Lobotomy Kit > --- INVENTORY -------- Light Ion Engine Light Ion Engine Wheel Wheel Wheel Compact Wheel Medium Storage Unit Targeting Computer ECM Suite Bomb Drone Bay Light Assault Rifle Grenade Launcher Grenade Launcher Mining Laser [Rating: 20] Favorites ----------- Power Light Ion Engine Engine Light Ion Engine Propulsion Aluminum Leg Leg Aluminum Leg Wheel Wheel Utility Large Storage Unit Device Seismic Detector Storage Large Storage Unit Processor Visual Processing Unit Weapon Light Assault Rifle Energy Gun Particle Gun Ballistic Gun Light Assault Rifle Launcher Grenade Launcher Special Weapon Mining Laser Build | -11 -10 -10 -10 -9 ------- Run | Yrd Mat Min Exi Min Slots Evolved . | . . . . . Power . | . . . . . Propulsion . | . . . . . Utility . | . . . . . Weapon . | . . . . . Parts Attached 27 | 6 17 3 . 1 Power 4 | 1 2 1 . . Engine 4 | 1 2 1 . . Core . | . . . . . Reactor . | . . . . . Propulsion 7 | 2 5 . . . Treads . | . . . . . Leg 5 | 2 3 . . . Wheel 2 | . 2 . . . Hover . | . . . . . Flight . | . . . . . Utility 6 | 1 5 . . . Device 1 | . 1 . . . Storage 3 | 1 2 . . . Processor 2 | . 2 . . . Hackware . | . . . . . Protection . | . . . . . Artifact . | . . . . . Weapon 10 | 2 5 2 . 1 Energy Gun 2 | 1 . 1 . . Energy Cannon . | . . . . . Ballistic Gun 4 | 1 3 . . . Ballistic Cannon . | . . . . . Launcher 2 | . 1 1 . . Special Weapon 2 | . 1 . . 1 Impact Weapon . | . . . . . Slashing Weapon . | . . . . . Piercing Weapon . | . . . . . Special Melee Weapon . | . . . . . Unidentified Prototypes . | . . . . . Parts Lost 2 | . 1 . . 1 Power 1 | . 1 . . . Propulsion 1 | . . . . 1 Utility . | . . . . . Weapon . | . . . . . Highest Loss Streak 1 | . 1 . . 1 To Critical Strikes . | . . . . . Average Backups 13 | 3 13 14 14 14 Power 3 | . 4 2 2 2 Propulsion 3 | 1 3 4 4 4 Utility 3 | . 2 4 4 4 Weapon 2 | . 2 3 3 3 Tool/Special . | . . . . . Unused Backups 13 | . 3 1 . 9 Power 4 | . 1 1 . 2 Propulsion 4 | . . . . 4 Utility 4 | . 1 . . 3 Weapon 1 | . 1 . . . Tool/Special . | . . . . . Average Slot Usage (%) 99 | . 98 100 100 100 Engine 13 | . 13 14 14 14 Leg 15 | . 26 . . . Wheel 12 | . 1 28 28 28 Storage 14 | . 15 14 14 14 Processor 11 | . 10 14 14 14 Energy Gun 5 | . . 10 14 14 Ballistic Gun 17 | . 24 10 . . Launcher 4 | . 2 3 14 12 Special Weapon 1 | . . 3 . 2 Peak Build Rating 20 | 6 9 11 12 20 Average Rating 9 | 4 8 10 11 12 On Entrance 7 | . 6 9 11 12 Naked Turns . | . . . . . Heaviest Build 38 | 11 38 31 31 31 Greatest Support 26 | 20 26 26 26 26 Greatest Overweight (x) 8 | . 8 1 1 1 Average Overweight (x) . | . . . 1 1 Largest Inventory Capacity 15 | 8 15 15 15 15 Average Capacity 14 | 6 14 15 15 15 Most Carried 15 | 6 15 15 15 15 Average Carried 13 | 3 13 14 15 15 Final Capacity 15 | 8 15 15 15 15 Final Carried 15 | 6 15 15 15 15 Class Distribution -------------------- 67% | Mutant 32% | Scavenger-Mutant Dominant Class ---------------- Mutant | -10/Materials Scavenger-Mutant | -10/Mines Scavenger-Mutant | -10/Exiles Scavenger-Mutant | -9/Mines Resources | -11 -10 -10 -10 -9 ----------- Run | Yrd Mat Min Exi Min Matter Collected 652 | 266 278 108 . . Remotely . | . . . . . Salvage Created 552 | 85 352 115 . . Parts 32 | 2 23 7 . . Haulers Intercepted 1 | . 1 . . . Recyclers Shooed 1 | . 1 . . . Parts Field Recycled . | . . . . . Retrieved Matter . | . . . . . Parts Self-Destructed . | . . . . . Prevented . | . . . . . Kills | -11 -10 -10 -10 -9 ------- Run | Yrd Mat Min Exi Min Combat Hostiles Destroyed 14 | . 7 7 . . Guns 12 | . 7 5 . . AOE 2 | . . 2 . . Classes Destroyed 5 | 1 4 . . . Hauler 1 | . 1 . . . Recycler 1 | 1 . . . . Watcher 2 | . 2 . . . Swarmer 7 | . 2 5 . . Grunt 7 | . 5 2 . . Best Kill Streak 3 | 1 2 3 . . Combat Bots Only 3 | . 2 3 . . Max Kills in Single Turn 2 | 1 1 2 . . Gunslinging . | . . . . . Exploded 2 | . . 2 . . Melee . | . . . . . Uniques/NPCs Destroyed . | . . . . . Combat | -11 -10 -10 -10 -9 -------- Run | Yrd Mat Min Exi Min Hostile Shots Fired 83 | . 50 30 . 3 Missed 11 | . 7 4 . . Hits 72 | . 43 26 . 3 Melee 2 | . . . . 2 Projectile 70 | . 43 26 . 1 Critical Strikes 1 | . . 1 . . Damage Taken 869 | . 512 278 . 79 Core 256 | . 148 79 . 29 Absorbed by Shields . | . . . . . Core Remaining (%) 100 | 100 . . . . Volleys Fired 80 | 9 53 17 . 1 Largest 2 | 1 2 2 . 2 Hottest 120 | 20 100 120 . 65 Shots Fired 145 | 9 104 30 . 2 Gun 140 | 9 102 28 . 1 Cannon . | . . . . . Launcher 1 | . . 1 . . Special 4 | . 2 1 . 1 Kinetic 123 | 9 102 12 . . Thermal 20 | . 2 17 . 1 Explosive 1 | . . 1 . . Electromagnetic . | . . . . . Robot Hit Streak 10 | 4 9 10 . 4 Robot Miss Streak 8 | 1 8 2 . . Penetration Max . | . . . . . Secondary Targets 2 | . 1 1 . . Max Gunslinging Chain 1 | . 1 1 . . Shots Hit Robots 85 | 7 54 22 . 2 Core Hits 40 | 3 25 11 . 1 Critical Kills . | . . . . . Critical Parts Destroyed . | . . . . . Critical Strikes 1 | . . 1 . . Burn 1 | . . 1 . . Melee Attacks . | . . . . . Impact . | . . . . . Slashing . | . . . . . Piercing . | . . . . . Sneak Attacks . | . . . . . Combat Hostiles . | . . . . . Follow-up Attacks . | . . . . . Damage Inflicted 1032 | 55 541 422 . 14 Guns 865 | 52 539 260 . 14 Cannons . | . . . . . Explosions 138 | . . 138 . . Melee . | . . . . . Ramming 29 | 3 2 24 . . Kinetic 682 | 52 539 91 . . Thermal 183 | . . 169 . 14 Explosive 138 | . . 138 . . Electromagnetic . | . . . . . Impact . | . . . . . Slashing . | . . . . . Piercing . | . . . . . Highest Corruption . | . . . . . Average Corruption . | . . . . . Corruption Purged . | . . . . . Corruption Blocked . | . . . . . Overload Shots . | . . . . . Overflow Damage 23 | . . 23 . . Projectiles . | . . . . . Explosions 23 | . . 23 . . Melee . | . . . . . Knockbacks . | . . . . . Impact . | . . . . . Kinetic . | . . . . . Secondary . | . . . . . Self-Inflicted Damage 11 | . . 11 . . Shots . | . . . . . Rammed 3 | . . 3 . . Targets Rammed 5 | 1 1 3 . . Kicked 2 | 1 1 . . . Crushed . | . . . . . Highest Temperature 251 | . 20 251 . . Average Temperature 64 | . 9 99 . . Received Heat Transfer 330 | . 219 111 . . Effects 2 | . . 2 . . Interference 2 | . . 2 . . Siege Activations . | . . . . . Martial Activations . | . . . . . Shielding Activations . | . . . . . Robots Disrupted . | . . . . . Combat Hostiles . | . . . . . Robots Corrupted . | . . . . . Combat Hostiles . | . . . . . Parts Fried . | . . . . . Impact Corruptions . | . . . . . Robots Melted . | . . . . . Combat Hostiles . | . . . . . Parts Melted 1 | . . 1 . . Heat Transferred 481 | . . 444 . 37 Parts Sabotaged . | . . . . . Parts Stolen . | . . . . . Parts Stripped . | . . . . . Power Chain Reactions . | . . . . . Alert | -11 -10 -10 -10 -9 ------- Run | Yrd Mat Min Exi Min Maximum Alert Level . | . . . . . Low Security (%) 100 | 100 100 100 . 100 Level 1 . | . . . . . Level 2 . | . . . . . Level 3 . | . . . . . Level 4 . | . . . . . Level 5 . | . . . . . High Security . | . . . . . Max Security . | . . . . . Peak Influence 80 | 5 50 80 . . Initial . | . . . . . Average 13 | . 10 24 . . Influence Increases 429 | 5 228 196 . . Destroy 0b10 Robot/C 280 | . 140 140 . . Destroy 0b10 Robot/NC 20 | 5 15 . . . Destroy Leader 76 | . 46 30 . . Successful Hack 10 | . 10 . . . Destroy Structure 13 | . 2 11 . . Lose Combat Pursuer 30 | . 15 15 . . Influence Decreases 429 | 5 228 164 32 . Entered New Map 32 | . . . 32 . Time Decay 387 | 5 218 164 . . Lost Part 10 | . 10 . . . Squads Dispatched 1 | . 1 . . . Investigation 1 | . 1 . . . Extermination . | . . . . . Reinforcement . | . . . . . Assault . | . . . . . Garrison . | . . . . . Intercept . | . . . . . Searches Triggered . | . . . . . Construction Impeded . | . . . . . Haulers Reinforced . | . . . . . Active Scanning Responses . | . . . . . Cargo Convoy Interrupts . | . . . . . Stealth | -11 -10 -10 -10 -9 --------- Run | Yrd Mat Min Exi Min Distress Signals 1 | . 1 . . . Communications Jammed . | . . . . . Distress Signals . | . . . . . Times Spotted 35 | . 17 8 . 10 Peak Tracking Total 7 | . 4 3 . 7 Tactical Retreats 3 | . 1 1 . 1 Traps | -11 -10 -10 -10 -9 ------- Run | Yrd Mat Min Exi Min Traps Triggered . | . . . . . Indirectly . | . . . . . Trap Hack Attempts . | . . . . . Triggered . | . . . . . Disarmed . | . . . . . Reprogrammed . | . . . . . Reused . | . . . . . Traps Extracted . | . . . . . Installed . | . . . . . Triggered . | . . . . . Most Traps Carried 2 | . . 2 . . Machines | -11 -10 -10 -10 -9 ---------- Run | Yrd Mat Min Exi Min Machines Disabled . | . . . . . Max in Single Turn . | . . . . . Machines Repaired . | . . . . . Machines Dismantled . | . . . . . Machines Sabotaged . | . . . . . Overloaded Fab Kills . | . . . . . Hacking | -11 -10 -10 -10 -9 --------- Run | Yrd Mat Min Exi Min Machines Accessed 9 | . 5 2 2 . Terminals 6 | . 5 1 . . Fabricators . | . . . . . Repair Stations . | . . . . . Recycling Units . | . . . . . Scanalyzers . | . . . . . Garrison Access . | . . . . . Total Hacks 17 | . 12 3 2 . Successful 9 | . 5 2 2 . Failed 7 | . 6 1 . . Catastrophic . | . . . . . Database Lockouts 1 | . 1 . . . Manual 11 | . 10 . 1 . Terminals 14 | . 12 2 . . Fabricators . | . . . . . Repair Stations . | . . . . . Recycling Units . | . . . . . Scanalyzers . | . . . . . Garrison Access . | . . . . . Terminal Hacks 7 | . 3 2 2 . Record 1 | . . . 1 . Robot Analysis 1 | . 1 . . . Prototype ID Bank 1 | . 1 . . . Open Door 1 | . . 1 . . Terminal Index 1 | . 1 . . . Alert Level 1 | . . 1 . . Proto ID Catalog 1 | . . . 1 . Fabricator Hacks . | . . . . . Repair Station Hacks . | . . . . . Recycling Unit Hacks . | . . . . . Scanalyzer . | . . . . . Garrison Access Hacks . | . . . . . Unauthorized Hacks 2 | . 2 . . . Terminals 2 | . 2 . . . Botnet 2 | . 2 . . . Fabricators . | . . . . . Repair Stations . | . . . . . Recycling Units . | . . . . . Scanalyzers . | . . . . . Garrison Access . | . . . . . Data Cores Recovered . | . . . . . Used . | . . . . . Hacking Detections 3 | . 3 . . . Full Trace Events 1 | . 1 . . . Feedback Events . | . . . . . Feedback Blocked . | . . . . . Robot Schematics Acquired . | . . . . . Robots Built . | . . . . . Authchips . | . . . . . Time . | . . . . . Total Robot Build Rating . | . . . . . Part Schematics Acquired . | . . . . . Parts Built . | . . . . . Authchips . | . . . . . Time . | . . . . . Total Part Build Rating . | . . . . . Parts Repaired . | . . . . . Time . | . . . . . Parts Recycled . | . . . . . Recycled Matter . | . . . . . Retrieved Matter . | . . . . . Retrieved Components . | . . . . . Parts Scanalyzed . | . . . . . Part Schematics Acquired . | . . . . . Parts Damaged . | . . . . . Bothacking | -11 -10 -10 -10 -9 ------------ Run | Yrd Mat Min Exi Min Used RIF Installer . | . . . . . Robots Hacked . | . . . . . Non-combat . | . . . . . Combat . | . . . . . Robot Hacks Applied . | . . . . . Relay Couplers Released . | . . . . . Fabnet Peak Effective % . | . . . . . Robots Rewired . | . . . . . Allies Hacked . | . . . . . Hacks Repelled . | . . . . . Allies | -11 -10 -10 -10 -9 -------- Run | Yrd Mat Min Exi Min Total Allies 5 | . . 1 . 4 Largest Group 3 | . . 1 1 3 Highest-Rated Group 40 | . . 31 31 40 Highest-Rated Ally 31 | . . 31 31 16 Total Orders . | . . . . . Ally Attacks 15 | . . . . 15 Total Damage 139 | . . . . 139 Kills 1 | . . . . 1 Allies Corrupted . | . . . . . Allies Melted . | . . . . . Field Lobotomies 1 | . . . . 1 Intel | -11 -10 -10 -10 -9 ------- Run | Yrd Mat Min Exi Min Active Infowar (turns) 1839 | . 1091 427 259 62 Optics 1723 | . 975 427 259 62 Seismic 116 | . 116 . . . Robot Analysis Total 1 | . 1 . . . Derelict Logs Recovered 1 | . . 1 . . Drone Launches . | . . . . . Drone Recoveries . | . . . . . Exploration | -11 -10 -10 -10 -9 ------------- Run | Yrd Mat Min Exi Min Turns Passed 2253 | 79 1303 550 259 62 Spaces Moved 1438 | 44 621 475 244 54 Core 9 | 8 1 . . . Treads . | . . . . . Legs 586 | 36 550 . . . Wheels 843 | . 70 475 244 54 Hover . | . . . . . Flight . | . . . . . Fastest Speed 50 | 50 90 90 105 105 Average Speed 133 | 107 172 101 105 105 Slowest Speed 450 | 120 450 105 105 105 Overloaded Moves . | . . . . . Propulsion Burnouts . | . . . . . Robots Hopped . | . . . . . Potential Cave-ins . | . . . . . Cave-ins Triggered . | . . . . . Exploration Rate (%) 53 | 3 86 97 62 17 Regions Visited 4 Branch Regions 3 Pre-discovered Areas 1 | . . . 1 . Known Exits Taken . | . . . . . Unknown Exits Taken 4 | 1 1 1 1 . Scrap Searched 1 | . . 1 . . Spaces Dug 2 | . 2 . . . Terrain Destroyed 13 | . 2 11 . . Melee . | . . . . . Projectile 3 | . 2 1 . . AOE 10 | . . 10 . . Terrain Rammed . | . . . . . Walls Destroyed . | . . . . . Machines Disabled . | . . . . . Actions | -11 -10 -10 -10 -9 --------- Run | Yrd Mat Min Exi Min Total 1644 | 65 759 517 247 56 Wait 48 | . 37 10 1 . Move 1434 | 43 620 474 243 54 Hop . | . . . . . Pick Up 23 | 6 12 4 1 . Fast Attach 13 | 6 7 . . . Attach 1 | . 1 . . . Detach 2 | . 2 . . . Swap 15 | . 11 3 . 1 Drop 22 | . 15 6 1 . Fire 80 | 9 53 17 . 1 Melee . | . . . . . Ram 3 | . . 3 . . Kick 2 | 1 1 . . . Crush . | . . . . . Escape Stasis . | . . . . . Rewire 1 | . . . 1 . Trap . | . . . . . Miscellaneous . | . . . . . Route ------- -11/Scrapyard -10/Materials (discovered 3 exits: [*Mat x2] / *Min) -10/Mines (discovered 3 exits: [*Mat x2] / *Exi) -10/Exiles -9/Mines History --------- Turn | Location | Event 13 | -11/Scrapyard | Discovered new exit (range 14) 80 | -11/Scrapyard | Entered Materials 329 | -10/Materials | Build established: Mutant 417 | -10/Materials | Discovered new exit (range 8) 656 | -10/Materials | Discovered new exit (range 10) 837 | -10/Materials | Core integrity fell below 50% 919 | -10/Materials | Discovered new exit (range 16) 1018 | -10/Materials | Central database locked down 1383 | -10/Materials | Entered Mines 1391 | -10/Mines | Discovered new exit (range 11) 1470 | -10/Mines | Learned Materials emergency access door positions 1522 | -10/Mines | Core integrity fell below 20% 1556 | -10/Mines | Found a hidden stash of uninstalled traps 1605 | -10/Mines | Discovered new exit (range 7) 1712 | -10/Mines | Found the Drone Emporium 1718 | -10/Mines | Found Prototype Device 1825 | -10/Mines | Build established: Scavenger-Mutant 1909 | -10/Mines | Received a Mining Laser from a helpful Derelict 1927 | -10/Mines | Deemed a non-threat by the Exiles lab entrance 1928 | -10/Mines | Discovered new exit (range 5) 1933 | -10/Mines | Entered Exiles 1933 | -10/Exiles | Accompanied by 1 ally 1959 | -10/Exiles | Met 8R-AWN 1978 | -10/Exiles | Met EX-HEX 2017 | -10/Exiles | Met EX-BIN 2032 | -10/Exiles | Aligned with FarCom system 2033 | -10/Exiles | Given EX-Vault access code 2066 | -10/Exiles | Opened EX-Vault 2088 | -10/Exiles | Found Field Lobotomy Kit 2110 | -10/Exiles | Warned to stay clear of 0b10 Research branches 2111 | -10/Exiles | Exiles lab attacked by MAIN.C 2147 | -10/Exiles | Learned location of Zion (-6) 2182 | -10/Exiles | Discovered new exit (range 11) 2192 | -10/Exiles | Left Exiles lab with Field Lobotomy Kit 2192 | -10/Exiles | Entered Mines 2193 | -9/Mines | Assembled infested the area 2195 | -9/Mines | Assisted by bots powering up and referring to "LRC-V3" 2251 | -9/Mines | Assimilated as-71438 with FLK Orb 2254 | -9/Mines | Destroyed by as-67133 with Assembled Blade Last Messages --------------- GOAL=ESCAPE 02192_ Receiving FarCom transmissions... 02193_ ALERT: Infestation in the mines, dispatching Demolisher response squad. 02194_ J5-HVA: "That was close. Too bad in all the rush we got split up from the others." 02195_ Trooper 2a: "Hello LRC-V3. What is your command?" 02195_ Mercenary 2a: "Hello LRC-V3. What is your command?" 02195_ Trooper 2b: "Hello LRC-V3. What is your command?" 02217_ Mercenary 2a destroyed. 02219_ J5-HVA: "Oh no, it's like what happened to the Exiles when they were wandering homeless, only there's no Warlord to save us!" 02228_ Trooper 2a destroyed. 02230_ Trooper 2b overheating. 02231_ Trooper 2b destroyed. 02233_ J5-HVA destroyed. 02250_ Com. Wheel destroyed. 02251_ as-71438 assimilated. 02251_ as-67133 sneak attacks. 02251_ as-71438 destroyed. Map ----- +----------------------------------------------------+ | ?????????????????????? ## #??????????? | | ????????????????????## # #??????????? | | ???????????????????? #??????????? | | ???????????????????? ##?????????? | | ????????????????????# ## ##????????? | | ????????????????????# ## ##???????? | | ????????????????????#[## #???????? | | ????????????????????#*## ##??????? | | ????????????????????#=% #??????? | | ????????????????????#%### #??????? | | ????????????????????#%#?## ##??????? | | ?????????????########!#???# #???????? | | ?????????????# !!##??? #???????? | | ?????????????# #???? #??????? | | ?????????????# #???? ?????? | | ????????????##### ##????? ????? | | ????????????# ### #?????? ???? | | ???????????# ##?# #???????## ?? | | ???###?????# ##??# #?????????# ? | | ??## #????## #????# #??????????# ? | | ??# #????###?????# #???????????# ? | | ?## #???????????# #???????????? ? | | ?# #?????###### #???????????????? | | ?# #????# #???????????????? | | ??# #####a######???????????????? | | ???# @a #????????????????????? | | ????# ######????????????????????? | | ????#### #?????????????????????????? | | ???????## ##?????????????????????????? | | ????????###???????????????????????????? | | ??????????????????????????????????????? | | ??????????????????????????????????????? | | ??????????????????????????????????????? | | ??????????????????????????????????????? | | ??????????????????????????????????????? | | | | | | | | | | | | | | | | | | | | | | | | | | | | | | | +----------------------------------------------------+ Best States ------------- Heat Dissipation 25 Energy Generation 10 Energy Capacity 250 Matter Stores 300 Matter Capacity 300 Sight Range 18 Terrain Scan Density 10 Evasion (%) 55 Item Schematics ----------------- None Robot Schematics ------------------ None Fabricated ------------ Nothing Repaired ---------- Nothing Alien Tech Used ----------------- None Achievements -------------- None Challenges ------------ None Game ------ Seed ExpertDisruptorAnalyzer Manual? 0 Play Time 00:19:03 Cumulative 64.8 hours Start 2025.09.24 @ 17:31:00 End 2025.09.24 @ 17:50:57 Sessions 1 Manual Loads 0 Difficulty Rogue Special Mode None Game No. 71 Rogue 71 Adventurer 0 Explorer 0 Win Type - Total 0 Types 0/0/0/0/0/0/0/0/0/0 Lore% 20 Gallery% 32 Achievement% 28 Wizard Run 0 Options --------- Layout 1 ASCII 0 Keyboard 1 Movement Numpad Keybinds 0 Fullscreen 1 Font 32/SmallcapsGlow Map View 77x35 Zoom Use 0% Tactical HUD 1 Map Filters NONE Filters NONE Steam 1 RUN: e9725222-bdcb-4241-a9b9-e85d77f48710